[Event "Romanian Superleague 2022"]
[Site "Oradea"]
[Date "2022.09.28"]
[Round "8.26"]
[White "Petkov, Momchil"]
[Black "Cioara, Andrei-Nestor"]
[Result "1-0"]
[ECO "B38"]
[WhiteElo "2511"]
[BlackElo "2407"]
[Annotator "TA"]
[PlyCount "105"]
[EventDate "2022.09.21"]
[EventType "team-tourn"]
[EventCountry "ROU"]
[SourceTitle "playchess.com"]
[Source "ChessBase"]
[SourceQuality "1"]
[TimeControl "40/5400+30:1800+30"]

{[%evp 21,105,23,33,33,37,39,35,35,39,36,39,44,55,51,50,59,53,53,57,54,50,25,18,20,26,2,3,0,0,0,0,0,8,0,0,0,0,0,0,0,0,2,7,0,16,16,16,16,81,42,69,0,0,0,0,0,0,0,0,0,0,0,0,0,0,0,0,0,0,0,0,0,89,90,88,88,304,313,310,270,422,418,29982,29983,29983,29984]} 1. e4 {[%emt 0:00:10]} c5 {[%emt 0:00:02]} 2. Nf3 {[%emt 0:00:20]} g6 {[%emt 0:00:04]} 3. c4 {[%emt 0:01:30]} Bg7 {[%emt 0:00:21]} 4. d4 {[%emt 0:00:12]} cxd4 {[%emt 0:00:25]} 5. Nxd4 {[%emt 0:00:06]} Nc6 {[%emt 0:00:19]} 6. Be3 {[%emt 0:00:27]} Nf6 {[%emt 0:00:13]} 7. Nc3 {[%emt 0:00:25]} d6 {[%emt 0:00:13]} 8. Be2 {[%emt 0:00:33]} O-O {[%emt 0:00:06]} 9. O-O {[%emt 0:00:12]} Bd7 {[%emt 0:00:17]} 10. h3 {[%emt 0:02:08]} Nxd4 {[%emt 0:04:23]} 11. Bxd4 {[%emt 0:00:18]} Bc6 {[%emt 0:00:56]} 12. Qc2 {[%emt 0:00:26] B38: Sicilian: Maroczy Bind with 5...Bg7 and 7...0-0.} a5 {[%emt 0:02:02]} 13. Rad1 {[%emt 0:01:03]} Nd7 {[%emt 0:00:45]} 14. Bxg7 {[%emt 0:00:20] White is slightly better.} Kxg7 {[%emt 0:00:05]} 15. Bg4 {[%emt 0:00:46]} Ne5 {[%emt 0:27:36]} 16. c5 {[%emt 0:01:12][%cal Bc4c5,Bc5d6][%mdl 32]} Nxg4 {[%emt 0:00:08]} 17. hxg4 {[%emt 0:00:06]} Qc8 {[%emt 0:00:02]} 18. cxd6 {[%emt 0:01:17]} Qxg4 {[%emt 0:07:05]} 19. dxe7 {[%emt 0:03:26]} Rfe8 {[%emt 0:00:08][%cal Bf8e8,Be8e7,Be7d7][%mdl 32]} 20. Nd5 {[%emt 0:01:05]} Bxd5 {[%emt 0:00:08][%mdl 64] Remove Defender} 21. exd5 {[%emt 0:00:19][%cal Be4d5,Bd5d6][%mdl 32] [#]} Rac8 $146 {[%emt 0:12:29] Prevents Qc3+.} ({Predecessor:} 21... Rxe7 22. d6 Rd7 23. Qc3+ Kg8 24. Rfe1 Qg5 25. Re5 Qd8 26. Qd4 Qf8 27. a4 Rad8 {½-½ (60) Palliser,R (2422)-Gormally,D (2494) Bournemouth 2016}) 22. Qd2 {[%emt 0:15:21]} Rxe7 {[%emt 0:00:06]} 23. d6 {[%emt 0:00:23]} Rd7 {[%emt 0:13:54]} ({Much less strong is} 23... Re2 24. Qxa5 Qd7 25. Rfe1 Rxe1+ 26. Qxe1 $16) 24. Qxa5 {[%emt 0:00:53]} Qf4 {[%emt 0:00:04] Inhibits Qe5+.} 25. Qb5 {[%emt 0:09:25]} Rc6 {[%emt 0:05:32]} 26. b3 {[%emt 0:21:52]} h5 {[%emt 0:03:07]} 27. Rd3 {[%emt 0:03:49]} Rcxd6 {[%emt 0:05:23]} 28. Qxd7 {[%emt 0:00:28]} Rxd7 {[%emt 0:00:04]} 29. Rxd7 $11 {[%emt 0:00:06][%mdl 4096] Endgame KQ-KRR} h4 {[%emt 0:02:54]} 30. Re1 {[%emt 0:07:01]} b6 {[%emt 0:08:28]} 31. Re3 {[%emt 0:13:11] Threatens to win with Rf3.} Kh6 {[%emt 0:00:35]} 32. a4 {[%emt 0:03:53]} Qf6 {[%emt 0:01:40]} 33. Ree7 {[%emt 0:04:31]} Qa1+ $1 {[%emt 0:00:06]} 34. Kh2 {[%emt 0:00:04]} f6 {[%emt 0:03:45]} (34... f5 $1 $11 {remains equal.}) 35. Re4 {[%emt 0:01:42] White is more active.} Qb2 {[%emt 0:02:54][%csl LRb3,LRf2]} 36. Rxh4+ {[%emt 0:00:56]} Kg5 {[%emt 0:00:00]} 37. Rh3 {[%emt 0:05:41] Black must now prevent Rg3+.} Qxf2 {[%emt 0:00:05]} 38. Rg3+ {[%emt 0:00:43]} Kh6 {[%emt 0:00:01]} 39. Rh3+ {[%emt 0:00:05]} Kg5 {[%emt 0:00:02]} 40. Rg7 {[%emt 0:00:00] Intending Rg3+ and mate.} Qe2 {[%emt 0:00:00]} 41. Rg3+ {[%emt 0:07:52]} Kf4 {[%emt 0:08:27]} 42. Rf3+ {[%emt 0:05:13]} Kg5 {[%emt 0:00:11]} 43. Rg3+ {[%emt 0:07:44]} Kf4 {[%emt 0:00:01]} 44. Rg8 {[%emt 0:04:36]} f5 {[%emt 0:07:40]} 45. Rc8 {[%emt 0:01:25]} Qh5+ {[%emt 0:05:54]} 46. Rh3 {[%emt 0:00:04]} Qe2 {[%emt 0:01:19]} (46... Qd1 $11) 47. Rf3+ $1 $16 {[%emt 0:01:11]} ({Much weaker is} 47. Rc6 g5 $11) 47... Kg5 {[%emt 0:03:05]} 48. Rc6 $1 {[%emt 0:01:08]} Qd1 $2 {[%emt 0:10:55] Black cannot hold the game after this.} (48... f4 $16 {was called for.} 49. Rxb6 Kf5 50. Rb5+ Kg4) 49. Rxb6 $18 {[%emt 0:02:01]} f4 {[%emt 0:00:21] [#]} 50. Rb4 {[%emt 0:01:11] Prevents Qd4.} Kh5 {[%emt 0:00:23]} (50... Qd8 $142 51. Rbxf4 Qh8+ 52. Rh3 Qe5) 51. Rbxf4 {[%emt 0:00:58] White threatens Rg3 and mate.} g5 {[%emt 0:00:04]} (51... Qd6 $18) 52. g4+ {[%emt 0:01:01]} Kg6 {[%emt 0:00:23] [#]} 53. Rf7 $1 {[%emt 0:00:42] Weighted Error Value: White=0.03 (flawless) /Black=0.33} 1-0

[Event "Romanian Superleague 2022"]
[Site "Oradea"]
[Date "2022.09.28"]
[Round "8.27"]
[White "Stepanencu, Nicodim-Cosmin"]
[Black "Bonte, Andrei-Mihai"]
[Result "1/2-1/2"]
[ECO "C67"]
[WhiteElo "2289"]
[BlackElo "2339"]
[Annotator "TA"]
[PlyCount "127"]
[EventDate "2022.09.21"]
[EventType "team-tourn"]
[EventCountry "ROU"]
[SourceTitle "playchess.com"]
[Source "ChessBase"]
[SourceQuality "1"]
[TimeControl "40/5400+30:1800+30"]

{[%evp 12,127,18,16,42,27,48,40,27,32,33,26,44,42,41,35,58,38,59,21,23,18,67,76,84,40,64,34,62,54,56,43,40,32,43,52,35,29,31,21,29,28,18,15,33,0,67,0,30,33,42,20,20,5,5,2,10,12,20,20,26,10,18,12,26,12,19,14,19,19,19,19,19,19,22,22,22,22,29,29,35,36,36,27,29,35,27,0,0,0,0,0,0,0,29,29,29,0,29,29,29,36,36,29,29,0,0,0,0,0,0,0,0,0,0,0,0,0]} 1. e4 {[%emt 0:00:01]} e5 {[%emt 0:00:15]} 2. Nf3 {[%emt 0:00:11]} Nc6 {[%emt 0:00:07]} 3. Bb5 {[%emt 0:00:15]} Nf6 {[%emt 0:01:22]} 4. O-O {[%emt 0:00:54]} Nxe4 {[%emt 0:02:31]} 5. Re1 {[%emt 0:00:09]} Nd6 {[%emt 0:01:36]} 6. Nxe5 {[%emt 0:00:18]} Be7 {[%emt 0:01:22]} 7. Bf1 {[%emt 0:00:06]} O-O {[%emt 0:04:19] C67: Ruy Lopez: Berlin Defence: 4 0-0 Nxe4.} 8. Nf3 {[%emt 0:00:33]} Nf5 {[%emt 0:08:32]} 9. d4 {[%emt 0:04:07]} d5 {[%emt 0:00:30] White is slightly better.} 10. c3 {[%emt 0:01:06]} Bd6 {[%emt 0:14:24]} 11. g3 {[%emt 0:02:04] [#]} g6 $146 {[%emt 0:08:07]} ({Predecessor:} 11... Re8 12. Rxe8+ Qxe8 13. Bg2 Nfe7 14. Nbd2 f6 15. Nf1 Qf7 16. h4 h5 17. Ne3 Be6 {1-0 (66) Dragun,K (2574)-Bruzon Batista,L (2644) Chess.com INT 2020}) 12. a4 {[%emt 0:14:04][%cal Ba2a4,Ba4a5,Ba5a6][%mdl 32]} Nce7 {[%emt 0:02:29]} 13. a5 {[%emt 0:04:54]} f6 {[%emt 0:07:04]} 14. b4 {[%emt 0:12:37]} Bd7 {[%emt 0:05:16]} 15. a6 {[%emt 0:03:02]} b6 {[%emt 0:02:06]} 16. b5 {[%emt 0:00:12]} Ng7 {[%emt 0:13:02]} (16... Rc8 $11 {was preferrable.}) 17. Qb3 {[%emt 0:01:56]} Bg4 {[%emt 0:01:36]} 18. Bg2 {[%emt 0:00:35] White is more active.} Qd7 {[%emt 0:01:01]} 19. Nbd2 {[%emt 0:22:46][%cal Bb1d2,Bd2f1,Bf1e3][%mdl 32]} (19. Bb2 $5 {[%cal Rf3d2]}) 19... Kh8 {[%emt 0:00:37]} 20. Nf1 {[%emt 0:01:13]} c6 {[%emt 0:09:44]} 21. bxc6 {[%emt 0:00:54]} Qxc6 {[%emt 0:00:09]} 22. Ba3 {[%emt 0:00:51]} Be6 {[%emt 0:00:00]} 23. N3d2 {[%emt 0:05:27][%cal Oc3c4]} Rad8 {[%emt 0:07:36]} 24. Ne3 {[%emt 0:01:52]} Bxa3 {[%emt 0:01:13]} 25. Qxa3 {[%emt 0:01:03]} Qd7 {[%emt 0:02:04]} 26. Nc2 {[%emt 0:04:40]} Rfe8 {[%emt 0:01:35]} 27. Qa2 {[%emt 0:09:06]} Nc6 {[%emt 0:00:55]} 28. Ne3 {[%emt 0:01:37]} Na5 {[%emt 0:00:45]} ({Black should play} 28... Ne7 $11) 29. Nb3 {[%emt 0:00:49]} (29. c4 $14) 29... Nxb3 {[%emt 0:00:30]} 30. Qxb3 {[%emt 0:00:01]} Bf7 {[%emt 0:01:05]} 31. Nc2 {[%emt 0:02:29]} Ne6 {[%emt 0:01:05]} 32. Nb4 {[%emt 0:03:34][%cal Rb3d5]} Nc7 {[%emt 0:00:25]} 33. Qb2 {[%emt 0:02:16]} Rxe1+ {[%emt 0:00:22]} 34. Rxe1 {[%emt 0:00:01]} Re8 {[%emt 0:00:16]} 35. Rxe8+ {[%emt 0:00:30]} Qxe8 {[%emt 0:00:13]} 36. Bf3 {[%emt 0:01:34]} Kg7 {[%emt 0:01:24]} 37. Kg2 {[%emt 0:00:14]} Qa4 {[%emt 0:00:33]} 38. Qe2 {[%emt 0:00:24] [#] Black must now prevent Qe7.} Qd7 {[%emt 0:01:10] Inhibits Qe7.} 39. h4 {[%emt 0:00:32]} h5 {[%emt 0:00:12]} (39... Be6 {looks sharper.} 40. g4 Qd6 41. g5 Qf4) 40. Qe3 {[%emt 0:00:00]} Qd6 {[%emt 0:00:00]} 41. Kh2 {[%emt 0:07:05]} b5 {[%emt 0:12:37]} 42. Qe2 {[%emt 0:05:01]} Nxa6 {[%emt 0:00:52]} 43. Qxb5 {[%emt 0:02:28]} Nxb4 {[%emt 0:00:14]} 44. cxb4 $11 {[%emt 0:00:10][%mdl 4096] Endgame KQB-KQB} Qe6 {[%emt 0:11:19]} 45. Qb7 {[%emt 0:03:22]} a6 {[%emt 0:02:18]} 46. Kg2 {[%emt 0:02:25]} Kh6 {[%emt 0:02:05]} 47. Qb8 {[%emt 0:00:18][%cal Rb8h8] [#]} Kg7 {[%emt 0:00:08] Inhibits Qh8+.} 48. Qc7 {[%emt 0:00:25]} Kh6 {[%emt 0:00:46]} 49. Qd8 {[%emt 0:05:50][%cal Rd8h8]} Kg7 {[%emt 0:00:07] Against Qh8+} 50. Kf1 {[%emt 0:00:07]} Qc6 {[%emt 0:01:22]} 51. Kg2 {[%emt 0:03:34]} Qe6 {[%emt 0:00:13] Inhibits Be2.} 52. Qc7 {[%emt 0:01:17]} Kh6 {[%emt 0:00:18]} 53. Qc5 {[%emt 0:00:40]} Kg7 {[%emt 0:00:21] Prevents Qf8+.} 54. Qc7 {[%emt 0:04:13]} Kh6 {[%emt 0:00:12]} 55. Qf4+ {[%emt 0:00:34]} Kg7 {[%emt 0:00:04]} 56. Qe3 {[%emt 0:01:04]} Qd6 {[%emt 0:00:53]} 57. Qa3 {[%emt 0:00:44]} Qe6 {[%emt 0:01:42]} 58. Kf1 {[%emt 0:00:27]} Be8 {[%emt 0:00:40] The position is equal.} 59. Qe3 {[%emt 0:00:33]} Bb5+ {[%emt 0:00:30]} 60. Ke1 {[%emt 0:00:33]} Qd6 {[%emt 0:01:16]} 61. Qc3 {[%emt 0:00:28]} Bc4 {[%emt 0:00:20]} 62. Kd2 {[%emt 0:00:33]} Qd7 {[%emt 0:00:42]} 63. Be2 {[%emt 0:00:13]} Bxe2 {[%emt 0:00:18]} 64. Kxe2 {[%emt 0:00:01] Weighted Error Value: White=0.08 (flawless) /Black=0.07 (flawless)} 1/2-1/2

[Event "Romanian Superleague 2022"]
[Site "Oradea"]
[Date "2022.09.28"]
[Round "8.28"]
[White "Gilea, Lucian"]
[Black "Vajda, Albert"]
[Result "1/2-1/2"]
[WhiteElo "2278"]
[BlackElo "2305"]
[Annotator "TA"]
[PlyCount "18"]
[EventDate "2022.09.21"]
[EventType "team-tourn"]
[EventCountry "ROU"]
[SourceTitle "playchess.com"]
[Source "ChessBase"]
[SourceQuality "1"]
[TimeControl "40/5400+30:1800+30"]

{[%evp 11,18,15,17,-11,0,-17,-8,-24,0]} 1. d4 {[%emt 0:00:04]} Nf6 {[%emt 0:00:20]} 2. Nf3 {[%emt 0:00:13]} e6 {[%emt 0:00:51]} 3. g3 {[%emt 0:01:00]} b5 {[%emt 0:00:28]} 4. Bg2 {[%emt 0:01:36]} Bb7 {[%emt 0:00:28]} 5. O-O {[%emt 0:00:16]} c5 {[%emt 0:00:31]} 6. c3 {[%emt 0:02:36]} Be7 {[%emt 0:05:44]} 7. Re1 {[%emt 0:05:32] A46: 1 d4 Nf6 2 Nf3 e6: Torre, London and Colle Systems.} O-O {[%emt 0:03:34]} 8. Qd3 {[%emt 0:06:11] [#]} a6 $146 {[%emt 0:09:05]} ({Predecessor:} 8... c4 9. Qc2 Be4 10. Qd1 d5 11. Nbd2 Bg6 12. Ne5 Nbd7 13. Nxg6 hxg6 14. e4 dxe4 15. Nxe4 Nxe4 16. Bxe4 {½-½ (45) Kovanova,B (2367)-Szczepkowska,K (2419) Riadh 2017}) 9. Nbd2 {[%emt 0:05:26]} cxd4 {[%emt 0:02:32] An uneventful encounter.  Weighted Error Value: White=0.20 (precise) /Black=0.06 (flawless)} 1/2-1/2

[Event "Romanian Superleague 2022"]
[Site "Oradea"]
[Date "2022.09.28"]
[Round "8.29"]
[White "Balla, Tamas-Kristof"]
[Black "Ognean, Mihnea-Ionut"]
[Result "1/2-1/2"]
[ECO "D00"]
[WhiteElo "2325"]
[BlackElo "2303"]
[Annotator "TA"]
[PlyCount "66"]
[EventDate "2022.09.21"]
[EventType "team-tourn"]
[EventCountry "ROU"]
[SourceTitle "playchess.com"]
[Source "ChessBase"]
[SourceQuality "1"]
[TimeControl "40/5400+30:1800+30"]

{[%evp 9,66,-18,-8,-18,-25,-32,-24,-27,2,11,7,12,26,29,31,21,44,39,29,-1,0,0,-2,-17,-8,-9,7,0,5,4,33,0,49,0,1,0,0,0,0,0,0,0,0,0,0,0,0,-4,23,0,0,0,0,0,0,0,0,0,0]} 1. d4 {[%emt 0:00:02]} Nf6 {[%emt 0:00:20]} 2. Nc3 {[%emt 0:00:07]} d5 {[%emt 0:00:12]} 3. Bf4 {[%emt 0:00:05]} a6 {[%emt 0:00:46]} 4. e3 {[%emt 0:00:28]} e6 {[%emt 0:00:05]} 5. Nf3 {[%emt 0:06:51]} c5 {[%emt 0:00:08]} 6. Ne5 {[%emt 0:00:14] D00: 1 d4 d5: Unusual lines.} Nfd7 {[%emt 0:00:06]} 7. Nf3 {[%emt 0:08:19]} Nc6 {[%emt 0:00:31]} 8. Be2 {[%emt 0:00:46] [#] Black has an edge.} b5 $146 {[%emt 0:11:27]} ({Predecessor:} 8... Be7 9. O-O g5 10. Bg3 g4 11. Nd2 h5 12. e4 Nxd4 13. exd5 h4 14. Bf4 e5 {0-1 (26) Martinez,M (1648)-De Gouveia,P (1811) LSS email 2017}) 9. e4 {[%emt 0:14:17]} Nf6 {[%emt 0:11:29]} (9... dxe4 {feels hotter.} 10. Nxe4 Bb7 11. d5 exd5 12. Qxd5 Nde5) 10. exd5 {[%emt 0:03:30]} Nxd5 {[%emt 0:00:04]} (10... exd5 {keeps more tension.} 11. O-O Be6 12. a3 Bd6) 11. Nxd5 {[%emt 0:00:08]} Qxd5 {[%emt 0:00:04]} 12. dxc5 {[%emt 0:00:12]} (12. a4 {looks sharper.} b4 13. dxc5 Bxc5 14. Qxd5 exd5 15. O-O) 12... Qxd1+ {[%emt 0:01:28]} 13. Rxd1 {[%emt 0:00:16]} Bxc5 {[%emt 0:00:07]} 14. Ne5 {[%emt 0:17:01]} (14. Ng5 $5 {[%cal Re2f3]}) 14... Nxe5 {[%emt 0:05:33]} (14... Nd4 {feels hotter.} 15. Bd3 f6 16. Be4 Ra7) 15. Bxe5 {[%emt 0:01:24]} Bb7 {[%emt 0:00:02]} 16. Bd4 {[%emt 0:00:35]} Rc8 {[%emt 0:02:50] And now ...Bxd4 would win.} 17. c3 {[%emt 0:01:49]} Be7 {[%emt 0:18:31]} 18. f4 {[%emt 0:05:51]} Rg8 {[%emt 0:04:20]} 19. O-O {[%emt 0:01:09][%cal Bh1f1,Bf1f2,Bf2e2][%mdl 32]} Bd5 {[%emt 0:05:50]} 20. Ra1 {[%emt 0:01:33]} g6 {[%emt 0:13:36]} (20... Bc5 $11) 21. a4 {[%emt 0:03:14]} (21. b4 $14 {deserves consideration.}) 21... Bc4 $11 {[%emt 0:00:06]} 22. Rf2 {[%emt 0:00:55]} Bxe2 {[%emt 0:01:38]} 23. Rxe2 {[%emt 0:00:49]} b4 {[%emt 0:00:02]} 24. Kf2 {[%emt 0:06:47]} Bd6 {[%emt 0:04:41]} 25. Kf3 {[%emt 0:07:13]} Ke7 {[%emt 0:00:40]} 26. g4 {[%emt 0:00:14]} bxc3 {[%emt 0:01:31]} 27. bxc3 {[%emt 0:03:56]} Kd7 {[%emt 0:06:16]} 28. Rb2 {[%emt 0:07:23]} Rb8 {[%emt 0:00:07]} 29. Rab1 {[%emt 0:00:12]} (29. Rd2 $5 {[%cal Rd4e5]} Kc6 30. Bf6 $14) 29... Rxb2 {[%emt 0:00:06] The position is equal.} 30. Rxb2 {[%emt 0:00:04]} Rb8 {[%emt 0:02:33] Prevents Rb7+.} 31. Rxb8 {[%emt 0:01:33]} Bxb8 {[%emt 0:00:03]} 32. g5 {[%emt 0:00:12]} Kc6 {[%emt 0:01:00] [#] Hoping for ...Kd5.} 33. Ke4 {[%emt 0:00:11]} Bd6 {[%emt 0:00:05] Weighted Error Value: White=0.07 (flawless) /Black=0.08 (flawless)} 1/2-1/2

[Event "Romanian Superleague 2022"]
[Site "Oradea"]
[Date "2022.09.28"]
[Round "8.30"]
[White "Ileana, George"]
[Black "Doncea, Vladimir"]
[Result "0-1"]
[ECO "B40"]
[WhiteElo "2301"]
[BlackElo "2342"]
[Annotator "TA"]
[PlyCount "85"]
[EventDate "2022.09.21"]
[EventType "team-tourn"]
[EventCountry "ROU"]
[SourceTitle "playchess.com"]
[Source "ChessBase"]
[SourceQuality "1"]
[TimeControl "40/5400+30:1800+30"]

{[%evp 11,85,5,10,-27,-25,-16,-23,-37,0,-37,0,0,0,0,0,0,0,-8,49,65,58,56,138,133,139,141,138,143,330,335,319,170,179,145,173,123,137,72,69,77,436,430,406,416,411,344,503,155,263,260,264,262,647,696,670,664,636,475,463,462,454,-44,-55,-106,-106,-97,-81,-58,-62,-276,-324,-572,-558,-632,-622,-1168]} 1. e4 {[%emt 0:00:10]} c5 {[%emt 0:00:07]} 2. Nf3 {[%emt 0:00:02][%cal Bg1f3,Bf3d4,Bd4b5][%mdl 32]} e6 {[%emt 0:00:08]} 3. d4 {[%emt 0:00:05]} cxd4 {[%emt 0:00:06]} 4. Nxd4 {[%emt 0:00:04]} Qb6 {[%emt 0:00:10]} 5. Nc3 {[%emt 0:01:40]} Bc5 {[%emt 0:00:08]} 6. Be3 {[%emt 0:01:19]} Nc6 $1 {[%emt 0:00:08][%cal Rc5d4]} 7. Ndb5 {[%emt 0:08:08] B40: Sicilian: 2...e6, Unusual lines.} (7. Nxc6 Bxe3 8. fxe3 Qxe3+ 9. Qe2 Qxe2+ 10. Bxe2 bxc6 $15) (7. Na4 $5 {[%cal Ra4b6]} Qa5+ 8. c3 Bxd4 9. Bxd4 $11) 7... Bxe3 {[%emt 0:00:08]} 8. fxe3 {[%emt 0:00:07]} Qxe3+ {[%emt 0:00:07]} 9. Be2 {[%emt 0:00:17] Black has an edge.} Kf8 {[%emt 0:00:06]} (9... Rb8 $5 {[%cal Rg8f6]}) 10. Rf1 {[%emt 0:01:02][%cal Bh1f1,Bf1f3,Bf3g3,Bg3g5,Bg5c5][%mdl 32]} Nf6 {[%emt 0:00:36]} 11. Qd6+ {[%emt 0:03:57]} Kg8 {[%emt 0:00:39]} 12. Rf3 {[%emt 0:01:20]} Qg5 {[%emt 0:00:12]} 13. Rg3 {[%emt 0:00:49]} Qe5 {[%emt 0:00:17]} 14. O-O-O {[%emt 0:00:25]} a6 {[%emt 0:01:17]} (14... Ne8 $11 15. Qxe5 Nxe5) 15. Qxe5 $1 $14 {[%emt 0:00:34]} Nxe5 {[%emt 0:00:25]} 16. Nd6 {[%emt 0:00:07] Threatens to win with Na4.} b5 {[%emt 0:04:36] Prevents Na4.} ({Black should play} 16... Rb8 $1 $14) 17. Rf1 $36 {[%emt 0:02:15][%mdl 3072] White has strong compensation. Black is under strong pressure.} Kf8 {[%emt 0:02:03]} 18. Rg5 {[%emt 0:00:22]} Nc6 {[%emt 0:00:15] [#]} 19. Rc5 $146 {[%emt 0:01:55] Hoping for e5.} ({Predecessor:} 19. e5 h6 20. exf6 hxg5 21. fxg7+ Kxg7 22. Rxf7+ Kg6 23. Bd3+ Kh5 24. Nce4 Ne5 25. Be2+ {0-1 (73) Pratihba,Y (2229)-Ibrayev,N (2427) Tagaytay City 2004}) 19... e5 $2 {[%emt 0:05:26]} (19... b4 $16) 20. Nd5 $18 {[%emt 0:00:45]} Rb8 {[%emt 0:00:06] [#]} 21. g4 {[%emt 0:03:03]} (21. Nxf6 gxf6 22. Rxf6 Ke7 $18) (21. Bh5 $142 $1 {[%mdl 512]}) 21... h6 {[%emt 0:01:20]} 22. h4 {[%emt 0:00:04] Black must now prevent g5.} (22. Nxf6 $6 gxf6 23. Rxf6 Ke7 24. Rxh6 (24. Nxf7 $2 Kxf6 25. Nxh8 Bb7 $19) (24. g5 hxg5 25. Rh6 Rxh6 $17) 24... Rxh6 $16) 22... Bb7 {[%emt 0:03:12]} 23. c3 {[%emt 0:02:31] Inhibits Nd4.} (23. Nxf6 gxf6 24. Rxf6 Ke7 $16) (23. g5 $18 hxg5 24. hxg5) 23... Nd8 $16 {[%emt 0:05:13]} 24. Nxf6 {[%emt 0:00:53]} (24. Nc7 $142 $1) 24... gxf6 {[%emt 0:01:04]} 25. Rxf6 {[%emt 0:00:07]} Kg7 $2 {[%emt 0:01:00][%mdl 8192]} (25... Ke7 $16 26. g5 hxg5 27. hxg5 Ne6 28. Nf5+ Kd8 29. Rxe5 Rh2) 26. g5 $18 {[%emt 0:01:29]} hxg5 {[%emt 0:00:05]} 27. hxg5 {[%emt 0:00:06]} Rh1+ {[%emt 0:00:22]} 28. Bd1 {[%emt 0:00:22]} Rg1 {[%emt 0:02:52]} (28... Ne6 $142 29. Rxf7+ Kg8 30. Rxe5 Bc6) 29. Rf5 $2 {[%emt 0:00:34]} (29. Rxe5 $18 {and the rest is easy. White threatens Nf5+ and mate.} Rxg5 30. Ne8+ Kf8 31. Rxg5) 29... Ba8 {[%emt 0:00:06]} (29... b4 $16 {was worth a try.}) 30. Rcxe5 {[%emt 0:00:26]} Rb6 {[%emt 0:00:13]} 31. Rf6 {[%emt 0:01:41] And now Nf5+ would win.} Ne6 $2 {[%emt 0:00:47]} (31... Rxd6 32. Rxd6 Bc6) 32. Rxf7+ {[%emt 0:00:57]} Kg6 {[%emt 0:00:04]} 33. Rxd7 {[%emt 0:00:14]} Nxg5 {[%emt 0:00:05]} 34. Rd8 {[%emt 0:00:42]} Kf6 {[%emt 0:00:11]} 35. Ree8 {[%emt 0:00:58] e5+ would kill now.} (35. Rf5+ Ke7 $16) 35... Ne6 {[%emt 0:00:20] [#]} 36. Rd7 {[%emt 0:01:37]} ({And not} 36. Rxa8 Rxd6 37. Kc2 (37. e5+ $2 Kxe5 38. Kc2 Rgxd1 $17) 37... Rgxd1 38. Rxa6 Rxa6 $17) (36. Nc8 $1 $18) 36... Bc6 $15 {[%emt 0:00:10]} 37. Ree7 {[%emt 0:30:05]} ({Reject} 37. Rf7+ Ke5 38. Rfe7 Bxe8 39. Nxe8 b4 $17) ({White should try} 37. Rh7 $15 Bxe8 38. Nxe8+ Ke5 39. Re7) 37... Bxd7 $17 {[%emt 0:00:27]} 38. Rxd7 {[%emt 0:00:07]} Nc5 {[%emt 0:01:25]} 39. Ne8+ {[%emt 0:00:31]} Ke6 {[%emt 0:01:08]} 40. Rd4 {[%emt 0:00:00] [#]} (40. Rh7 $15 Rc6 41. Rh6+ Kd7 42. Nf6+ Kc8 43. Rh8+ Kb7 44. Rh7+ Rc7 45. Rxc7+ Kxc7 46. Kd2) 40... Rc6 $1 $19 {[%emt 0:00:00] ...Ke7 is the strong threat.} 41. Kd2 $2 {[%emt 0:05:38]} (41. e5) 41... Ke7 {[%emt 0:03:04]} 42. Bh5 {[%emt 0:00:27]} Rg5 {[%emt 0:00:19]} 43. Rd5 {[%emt 1:04:05] Weighted Error Value: White=0.63/Black=0.46} 0-1